bitfinex/quotes_BTCUSD_20230901
["timestamp","ask_amount","ask_price","bid_price","bid_amount"]
[1693529576114,0.0920058,26063.0,26062.0,1.12096597]
[1693529577255,0.23006401,26063.0,26062.0,1.12096597]
[1693529577483,0.48731754,26063.0,26062.0,1.12096597]
[1693529578298,0.39531174,26063.0,26062.0,1.12896597]
[1693529578514,0.81009899,26063.0,26062.0,0.55341597]
[1693529579174,0.69470103,26063.0,26062.0,0.55341597]
[1693529579549,0.69470103,26063.0,26062.0,0.56641597]
[1693529580177,0.92481393,26063.0,26062.0,0.56641597]
[1693529581430,0.74073631,26063.0,26062.0,0.56641597]
[1693529583463,0.48348278,26063.0,26062.0,0.56641597]
[1693529583994,0.66777327,26063.0,26062.0,0.56641597]
[1693529584664,0.48348278,26063.0,26062.0,0.56641597]
[1693529584862,0.66777195,26063.0,26062.0,0.56641597]
[1693529585059,0.66777194,26063.0,26062.0,0.56641597]
[1693529585276,0.48348278,26063.0,26062.0,0.56641597]
[1693529585912,0.48348278,26063.0,26062.0,1.14196597]
[1693529585913,0.48374714,26063.0,26062.0,1.14196597]
[1693529587402,0.25303751,26063.0,26062.0,1.14196597]
[1693529587733,0.23036132,26063.0,26062.0,1.13696597]
[1693529590388,0.4351751,26063.0,26062.0,1.13696597]
[1693529590576,0.45785129,26063.0,26062.0,1.13696597]
[1693529606133,0.22748997,26063.0,26062.0,1.13696597]
[1693529606333,0.41582152,26063.0,26062.0,1.13696597]
[1693529609349,0.41582152,26063.0,26062.0,0.56141597]
[1693529616187,0.21100774,26063.0,26062.0,0.56141597]
[1693529616887,0.02267619,26063.0,26062.0,0.56141597]
[1693529619000,0.02267619,26063.0,26062.0,1.13696597]
[1693529628417,0.02267619,26064.0,26062.0,1.13696597]
[1693529629507,0.02267619,26064.0,26062.0,1.12896597]
[1693529629893,0.02267619,26064.0,26062.0,2.27276275]
[1693529629894,0.02667619,26064.0,26062.0,2.27276275]
[1693529630153,0.25315455,26063.0,26062.0,2.19680275]
[1693529631470,0.25315455,26063.0,26062.0,2.21780275]
[1693529631969,0.23047836,26063.0,26062.0,2.21780275]
[1693529633075,0.23047836,26063.0,26062.0,2.09960275]
[1693529633439,0.48734117,26063.0,26062.0,1.71251597]
[1693529633630,0.279539,26063.0,26062.0,0.021]
[1693529634272,0.279539,26063.0,26062.0,0.59655]
[1693529640563,0.02267619,26063.0,26062.0,0.59655]
[1693529640756,0.29910977,26064.0,26062.0,0.59655]
[1693529640958,0.53511675,26064.0,26062.0,0.59655]
[1693529641265,0.02267619,26063.0,26062.0,0.59655]
[1693529641777,0.02267619,26063.0,26062.0,0.58855]
[1693529642579,0.02267619,26063.0,26062.0,0.57555]
[1693529643557,0.02267619,26063.0,26062.0,0.58855]
[1693529643801,0.02267619,26063.0,26062.0,0.59655]
[1693529644411,0.02267619,26063.0,26062.0,1.1721]
[1693529650432,0.20582567,26063.0,26062.0,1.1721]
[1693529650644,0.02267619,26063.0,26062.0,1.1721]
[1693529652888,0.0226838,26063.0,26062.0,1.1721]
[1693529663457,0.2992102,26064.0,26062.0,1.1721]
[1693529664424,0.02268321,26063.0,26062.0,1.1641]
[1693529664645,0.29920244,26064.0,26062.0,1.1641]
[1693529664856,0.02268321,26063.0,26062.0,1.1641]
[1693529665642,0.02268321,26063.0,26062.0,1.1511]
[1693529666252,0.29920244,26064.0,26062.0,1.1511]
[1693529666456,0.02268321,26063.0,26062.0,1.1591]
[1693529667116,0.02268321,26063.0,26062.0,1.1511]
[1693529667566,0.02268321,26063.0,26062.0,1.1641]
[1693529668118,0.02268321,26063.0,26062.0,1.1721]
[1693529669300,0.29920244,26064.0,26062.0,1.1721]
[1693529669505,0.02268321,26063.0,26062.0,1.1721]
[1693529669681,0.29920244,26064.0,26062.0,1.1721]
[1693529670003,0.02268321,26063.0,26062.0,1.1721]
[1693529670198,0.02268321,26063.0,26062.0,1.1591]
[1693529671321,0.02268321,26063.0,26062.0,1.1721]
[1693529672560,0.02268321,26063.0,26062.0,1.74765]
[1693529673622,0.27651923,26065.0,26062.0,1.74765]
[1693529673796,0.2304286,26063.0,26062.0,1.74765]
[1693529674404,0.2304286,26063.0,26062.0,1.73465]
[1693529677137,0.2304286,26063.0,26062.0,1.74765]
[1693529680789,0.25311181,26063.0,26062.0,1.74765]
[1693529681092,0.2304286,26063.0,26062.0,1.74765]
[1693529683246,0.25311181,26063.0,26062.0,1.74765]
[1693529683446,0.2304286,26063.0,26062.0,1.74765]
[1693529686611,0.2304286,26063.0,26062.0,2.25293678]
[1693529686810,0.20702003,26063.0,26062.0,2.33243678]
[1693529687066,0.18433682,26063.0,26062.0,2.33375678]
[1693529687246,0.18433682,26063.0,26062.0,2.33351678]
[1693529687404,0.18433682,26063.0,26062.0,2.33321678]
[1693529687605,0.32257004,26063.0,26062.0,2.33279678]
[1693529687809,0.32257004,26063.0,26062.0,2.33255678]
[1693529687989,0.32245182,26063.0,26062.0,2.33207678]
[1693529688189,0.32245182,26063.0,26062.0,2.34209678]
[1693529688404,0.32245182,26063.0,26062.0,2.33771678]
[1693529688600,0.13823322,26063.0,26062.0,2.33783678]
[1693529688807,0.13823322,26063.0,26062.0,2.34101678]
[1693529689007,0.13823322,26063.0,26062.0,2.34065678]
[1693529689210,0.13823322,26063.0,26062.0,2.34005678]
[1693529689408,0.13823322,26063.0,26062.0,2.34029678]
[1693529689655,0.13823322,26063.0,26062.0,2.33993678]
[1693529689848,0.13823322,26063.0,26062.0,2.34587678]
[1693529690175,0.13823322,26063.0,26062.0,2.35019678]
[1693529690391,0.13823322,26063.0,26062.0,2.35391678]
[1693529690502,0.13823322,26063.0,26062.0,2.35247678]
[1693529690707,0.13823322,26063.0,26062.0,2.34869678]
[1693529690911,0.13823322,26063.0,26062.0,2.34629678]
[1693529691107,0.13823322,26063.0,26062.0,2.34593678]
[1693529691335,0.13823322,26063.0,26062.0,2.34509678]
[1693529691560,0.13823322,26063.0,26062.0,2.34473678]
[1693529691762,0.13823322,26063.0,26062.0,2.34407678]
[1693529692009,0.13823322,26063.0,26062.0,2.34371678]
[1693529692217,0.13823322,26063.0,26062.0,2.33777678]
[1693529692401,0.13823322,26063.0,26062.0,2.33837678]
[1693529692724,0.23035296,26063.0,26062.0,2.33783678]
[1693529692927,0.23035296,26063.0,26062.0,2.33753678]
[1693529693128,0.23035296,26063.0,26062.0,2.33723678]
[1693529693346,0.23035296,26063.0,26062.0,2.33717678]
[1693529693535,0.23035296,26063.0,26062.0,2.33687678]
[1693529693738,0.23035296,26063.0,26062.0,2.33471678]
[1693529693942,0.23035296,26063.0,26062.0,2.33435678]
[1693529694151,0.23035296,26063.0,26062.0,2.33411678]
[1693529694294,0.23035296,26063.0,26062.0,2.33381678]
[1693529694494,0.23035296,26063.0,26062.0,2.33543678]
[1693529694724,0.23035296,26063.0,26062.0,2.33537678]
[1693529694925,0.23035296,26063.0,26062.0,2.33477678]
[1693529695126,0.23035296,26063.0,26062.0,2.33453678]
[1693529695370,0.23035296,26063.0,26062.0,2.33435678]
[1693529695568,0.23035296,26063.0,26062.0,2.33411678]
[1693529695747,0.23035296,26063.0,26062.0,2.33501678]
[1693529695970,0.23035296,26063.0,26062.0,2.33489678]
[1693529696130,0.23035296,26063.0,26062.0,2.33291678]
[1693529696328,0.23035296,26063.0,26062.0,2.33777678]
[1693529696558,0.09211974,26063.0,26062.0,2.34251678]
[1693529696755,0.09211974,26063.0,26062.0,2.34239678]
[1693529696952,0.09211974,26063.0,26062.0,2.34365678]
[1693529697167,0.23035296,26063.0,26062.0,2.34341678]
[1693529697375,0.23035296,26063.0,26062.0,2.34167678]
[1693529697633,0.09211974,26063.0,26062.0,2.34197678]
[1693529697851,0.09211974,26063.0,26062.0,2.34083678]
[1693529698053,0.09211974,26063.0,26062.0,2.34173678]
[1693529698273,0.09211974,26063.0,26062.0,2.34179678]
[1693529698490,0.09211974,26063.0,26062.0,2.34545678]
[1693529698794,0.23035296,26064.0,26062.0,2.35661678]
[1693529698994,0.09211974,26064.0,26063.0,0.50528678]
[1693529699208,0.09211974,26064.0,26063.0,2.31947078]
[1693529699417,0.09211974,26064.0,26063.0,2.31953078]
[1693529699620,0.09211974,26064.0,26063.0,2.31971078]
[1693529699816,0.09211974,26064.0,26063.0,2.32061078]
[1693529700022,0.09211974,26064.0,26063.0,2.32067078]
[1693529700218,0.09611974,26064.0,26063.0,2.32091078]
[1693529700417,0.09611974,26064.0,26063.0,2.32097078]
[1693529700622,0.09611974,26064.0,26063.0,2.32079078]
[1693529700797,0.09611974,26064.0,26063.0,2.32121078]
[1693529700999,0.09611974,26064.0,26063.0,2.32019078]
[1693529701199,0.09611974,26064.0,26063.0,2.32073078]
[1693529701542,0.09611974,26064.0,26063.0,2.32061078]
[1693529701748,0.09211974,26064.0,26063.0,2.33349078]
[1693529701885,0.09411974,26064.0,26063.0,2.35555078]
[1693529702080,0.09411974,26064.0,26063.0,2.35669078]
[1693529702314,0.09411974,26064.0,26063.0,2.34375078]
[1693529702513,0.09511974,26064.0,26063.0,2.36885078]
[1693529702714,0.09511974,26064.0,26063.0,2.36849078]
[1693529702924,0.09511974,26064.0,26063.0,2.36867078]
[1693529703127,0.09511974,26064.0,26063.0,2.36873078]
[1693529703328,0.09511974,26064.0,26063.0,2.36879078]
[1693529703573,0.09511974,26064.0,26063.0,2.36939078]
[1693529703753,0.09511974,26064.0,26063.0,2.36921078]
[1693529704138,0.09511974,26064.0,26063.0,2.36999078]
[1693529704345,0.09511974,26064.0,26063.0,2.37425078]
[1693529704546,0.09511974,26064.0,26063.0,2.69225078]
[1693529704661,0.09511974,26064.0,26063.0,2.69069078]
[1693529704862,0.09511974,26064.0,26063.0,2.69075078]
[1693529705063,0.003,26064.0,26063.0,2.69387078]
[1693529705350,0.003,26064.0,26063.0,2.69501078]
[1693529705525,0.003,26064.0,26063.0,2.69489078]
[1693529705729,0.003,26064.0,26063.0,2.69477078]
[1693529706137,0.003,26064.0,26063.0,2.69465078]
[1693529706338,0.003,26064.0,26063.0,2.69441078]
[1693529706538,0.003,26064.0,26063.0,2.69429078]
[1693529706766,0.003,26064.0,26063.0,2.69087078]
[1693529707043,0.003,26064.0,26063.0,2.69075078]
[1693529707339,0.003,26064.0,26063.0,2.69063078]
[1693529707551,0.003,26064.0,26063.0,2.68841078]
[1693529707747,0.003,26064.0,26063.0,2.68967078]
[1693529707945,0.003,26064.0,26063.0,2.68961078]
[1693529708153,0.003,26064.0,26063.0,2.69453078]
[1693529708305,0.003,26064.0,26063.0,2.69225078]
[1693529708505,0.003,26064.0,26063.0,2.69219078]
[1693529708709,0.003,26064.0,26063.0,2.69207078]
[1693529708914,0.003,26064.0,26063.0,2.69273078]
[1693529709115,0.003,26064.0,26063.0,2.69003078]
[1693529709311,0.003,26064.0,26063.0,2.69255078]
[1693529709537,0.003,26064.0,26063.0,2.69015078]
[1693529709789,0.003,26064.0,26063.0,2.69267078]
[1693529709986,0.003,26064.0,26063.0,2.69291078]
[1693529710186,0.003,26064.0,26063.0,2.69393078]
[1693529710403,0.003,26064.0,26063.0,2.69135078]
[1693529710751,0.003,26064.0,26063.0,2.68793078]
[1693529710884,0.003,26064.0,26063.0,2.68937078]
[1693529711291,0.003,26064.0,26063.0,2.69009078]
[1693529711487,0.003,26064.0,26063.0,2.68997078]
[1693529711879,0.003,26064.0,26063.0,2.68847078]
[1693529712080,0.003,26064.0,26063.0,2.68733078]
[1693529712270,0.003,26064.0,26063.0,2.68727078]
[1693529712468,0.003,26064.0,26063.0,2.68499078]
[1693529712674,0.003,26064.0,26063.0,2.68559078]
[1693529712972,0.003,26064.0,26063.0,2.68469078]
[1693529713173,0.003,26064.0,26063.0,2.68427078]
[1693529713388,0.003,26064.0,26063.0,2.68457078]
[1693529713611,0.003,26064.0,26063.0,2.68451078]
[1693529713812,0.003,26064.0,26063.0,2.68769078]
[1693529714072,0.003,26064.0,26063.0,2.719127]
[1693529714209,0.003,26064.0,26063.0,2.718767]
[1693529714412,0.003,26064.0,26063.0,2.718707]
[1693529714944,0.003,26064.0,26063.0,2.718647]
[1693529715162,0.003,26064.0,26063.0,2.719007]
[1693529715584,0.003,26064.0,26063.0,2.720387]
[1693529715761,0.003,26064.0,26063.0,2.718407]
[1693529715966,0.003,26064.0,26063.0,2.731087]
[1693529716176,0.003,26064.0,26063.0,2.736127]
[1693529716384,0.003,26064.0,26063.0,2.740327]
[1693529716577,0.003,26064.0,26063.0,2.735407]
[1693529716803,0.003,26064.0,26063.0,2.736127]
[1693529717032,0.003,26064.0,26063.0,2.735227]
[1693529717233,0.003,26064.0,26063.0,2.734267]
[1693529717452,0.003,26064.0,26063.0,2.733907]
[1693529717644,0.003,26064.0,26063.0,2.738347]
[1693529717790,0.003,26064.0,26063.0,2.738107]
[1693529717989,0.003,26064.0,26063.0,2.738287]
[1693529718194,0.003,26064.0,26063.0,2.737267]
[1693529718395,0.003,26064.0,26063.0,2.736727]
[1693529718596,0.003,26064.0,26063.0,2.736667]
[1693529718796,0.003,26064.0,26063.0,2.737087]
[1693529719005,0.003,26064.0,26063.0,2.736727]
[1693529719212,0.003,26064.0,26063.0,2.736367]
[1693529719408,0.003,26064.0,26063.0,2.736607]
[1693529719614,0.003,26064.0,26063.0,2.736187]
[1693529719821,0.003,26064.0,26063.0,2.735827]
[1693529720022,0.003,26064.0,26063.0,2.735887]
[1693529720218,0.003,26064.0,26063.0,2.732647]
[1693529720468,0.003,26064.0,26063.0,2.713687]
[1693529720780,0.003,26064.0,26063.0,2.714347]
[1693529720938,0.003,26064.0,26063.0,2.713987]
[1693529721142,0.003,26064.0,26063.0,2.714107]
[1693529721334,0.003,26064.0,26063.0,2.715607]
[1693529721535,0.003,26064.0,26063.0,2.715787]
[1693529721772,0.003,26064.0,26063.0,2.715907]
[1693529721938,0.003,26064.0,26063.0,2.718007]
[1693529722140,0.003,26064.0,26063.0,2.718607]
[1693529722386,0.003,26064.0,26063.0,2.720407]
[1693529722589,0.003,26064.0,26063.0,2.725627]
[1693529722789,0.003,26064.0,26063.0,2.726167]
[1693529722999,0.003,26064.0,26063.0,2.726287]
[1693529723205,0.003,26064.0,26063.0,2.726467]
[1693529723382,0.003,26064.0,26063.0,2.726887]
[1693529723791,0.003,26064.0,26063.0,2.728747]
[1693529724188,0.003,26064.0,26063.0,2.728927]
[1693529724511,0.003,26064.0,26063.0,2.726827]
[1693529724948,0.003,26064.0,26063.0,2.729047]
[1693529725146,0.003,26064.0,26063.0,2.727007]
[1693529725324,0.003,26064.0,26063.0,2.727247]
[1693529725647,0.003,26064.0,26063.0,2.727367]
[1693529725805,0.003,26064.0,26063.0,2.728927]
[1693529726008,0.003,26064.0,26063.0,2.731567]
[1693529726234,0.003,26064.0,26063.0,2.731867]
[1693529726411,0.003,26064.0,26063.0,2.732287]
[1693529726589,0.003,26064.0,26063.0,2.731987]
[1693529726788,0.003,26064.0,26063.0,2.734867]
[1693529727058,0.003,26064.0,26063.0,2.739067]
[1693529727206,0.003,26064.0,26063.0,2.740207]
[1693529727402,0.003,26064.0,26063.0,2.740267]
[1693529727634,0.003,26064.0,26063.0,2.739967]
[1693529727831,0.003,26064.0,26063.0,2.739907]
[1693529728158,0.003,26064.0,26063.0,2.740387]
[1693529728291,0.003,26064.0,26063.0,2.740267]
[1693529728494,0.003,26064.0,26063.0,2.739907]
[1693529729063,0.003,26064.0,26063.0,2.740147]
[1693529729478,0.003,26064.0,26063.0,2.740087]
[1693529729880,0.003,26064.0,26063.0,2.739667]
[1693529730082,0.003,26064.0,26063.0,2.740327]
[1693529730281,0.003,26064.0,26063.0,2.740387]
[1693529730490,0.003,26064.0,26063.0,2.741047]
[1693529730689,0.003,26064.0,26063.0,2.741467]
[1693529730894,0.003,26064.0,26063.0,2.739307]
[1693529731070,0.003,26064.0,26063.0,2.739487]
[1693529731411,0.003,26064.0,26063.0,2.739067]
[1693529731772,0.003,26064.0,26063.0,2.738167]
[1693529731973,0.003,26064.0,26063.0,2.738227]
[1693529732551,0.003,26064.0,26063.0,2.738287]
[1693529732749,0.003,26064.0,26063.0,2.738347]
[1693529732954,0.003,26064.0,26063.0,2.738407]
[1693529733162,0.003,26064.0,26063.0,2.738227]
[1693529733423,0.003,26064.0,26063.0,2.738287]
[1693529733830,0.003,26064.0,26063.0,2.737867]
[1693529734031,0.003,26064.0,26063.0,2.737927]
[1693529734257,0.003,26064.0,26063.0,2.738167]
[1693529734457,0.003,26064.0,26063.0,2.737987]
[1693529734737,0.003,26064.0,26063.0,2.738587]
[1693529734968,0.003,26064.0,26063.0,2.737327]
[1693529735165,0.003,26064.0,26063.0,2.740627]
[1693529735366,0.003,26064.0,26063.0,2.741947]
[1693529735600,0.003,26064.0,26063.0,2.742127]
[1693529735779,0.003,26064.0,26063.0,2.742007]
[1693529735913,0.003,26064.0,26063.0,2.741947]
[1693529736112,0.003,26064.0,26063.0,2.741887]
[1693529736770,0.003,26064.0,26063.0,2.741767]
[1693529737025,0.003,26064.0,26063.0,2.736187]
[1693529737222,0.003,26064.0,26063.0,2.736007]
[1693529737707,0.003,26064.0,26063.0,2.736307]
[1693529737874,0.003,26064.0,26063.0,2.735887]
[1693529738075,0.003,26064.0,26063.0,2.735707]
[1693529738282,0.003,26064.0,26063.0,2.736007]
[1693529738459,0.003,26064.0,26063.0,2.737387]
[1693529738662,0.003,26064.0,26063.0,2.740267]
[1693529739002,0.003,26064.0,26063.0,2.739427]
[1693529739212,0.003,26064.0,26063.0,2.738167]
[1693529739414,0.003,26064.0,26063.0,2.738407]
[1693529739589,0.003,26064.0,26063.0,2.739667]
[1693529739768,0.003,26064.0,26063.0,2.740807]
[1693529739966,0.003,26064.0,26063.0,2.739667]
[1693529740198,0.003,26064.0,26063.0,2.742727]
[1693529740398,0.003,26064.0,26063.0,2.741947]
[1693529740600,0.003,26064.0,26063.0,2.743087]
[1693529740781,0.003,26064.0,26063.0,2.742907]
[1693529741224,0.003,26064.0,26063.0,2.741647]
[1693529741398,0.003,26064.0,26063.0,2.741587]
[1693529741621,0.003,26064.0,26063.0,2.741707]
[1693529741823,0.003,26064.0,26063.0,2.742487]
[1693529742061,0.003,26064.0,26063.0,2.742427]
[1693529742262,0.003,26064.0,26063.0,2.743147]
[1693529742401,0.003,26064.0,26063.0,2.742907]
[1693529742600,0.003,26064.0,26063.0,2.742427]
[1693529742805,0.003,26064.0,26063.0,2.742787]
[1693529743030,0.003,26064.0,26063.0,2.743807]
[1693529743206,0.003,26064.0,26063.0,2.744347]
[1693529743406,0.003,26064.0,26063.0,2.744467]
[1693529743607,0.003,26064.0,26063.0,2.744407]
[1693529743895,0.003,26064.0,26063.0,2.744707]
[1693529744272,0.003,26064.0,26063.0,2.744887]
[1693529744507,0.003,26064.0,26063.0,2.744467]
[1693529744710,0.003,26064.0,26063.0,2.744287]
[1693529744979,0.003,26064.0,26063.0,2.744347]
[1693529745119,0.003,26064.0,26063.0,2.744407]
[1693529745319,0.003,26064.0,26063.0,2.744227]
[1693529745517,0.003,26064.0,26063.0,2.746927]
[1693529745721,0.003,26064.0,26063.0,2.744407]
[1693529745919,0.003,26064.0,26063.0,2.747647]
[1693529746462,0.003,26064.0,26063.0,2.748967]
[1693529746665,0.09201303,26067.0,26064.0,0.4244]
[1693529746865,0.23003258,26068.0,26066.0,0.52528678]
[1693529747064,0.23003258,26068.0,26067.0,1.56908]
[1693529747065,0.09201303,26068.0,26067.0,1.56908]
[1693529747279,0.09201303,26068.0,26067.0,3.21612678]
[1693529747442,0.09201303,26068.0,26067.0,3.21606678]
[1693529747680,0.09201303,26068.0,26067.0,3.21576678]
[1693529747889,0.09201303,26068.0,26067.0,3.20592678]
[1693529748092,0.09201303,26068.0,26067.0,3.20238678]
[1693529748302,0.09201303,26068.0,26067.0,3.20244678]
[1693529748891,0.09301303,26068.0,26067.0,3.42431678]
[1693529749088,0.09301303,26068.0,26067.0,3.42395678]
[1693529749267,0.09301303,26068.0,26067.0,3.42323678]
[1693529749566,0.09301303,26068.0,26067.0,3.42683678]
[1693529749767,0.09301303,26068.0,26067.0,3.46363678]
[1693529749974,0.09301303,26068.0,26067.0,3.46357678]
[1693529750176,0.09301303,26068.0,26067.0,3.46363678]
[1693529750375,0.09301303,26068.0,26067.0,3.46351678]
[1693529750527,0.09301303,26068.0,26067.0,3.46231678]
[1693529750740,0.09301303,26068.0,26067.0,3.46147678]
[1693529751083,0.001,26068.0,26067.0,3.46381678]
[1693529751255,0.001,26068.0,26067.0,3.46375678]
[1693529751467,0.001,26068.0,26067.0,3.46165678]
[1693529751715,0.001,26068.0,26067.0,3.45991678]
[1693529751872,0.001,26068.0,26067.0,3.45907678]
[1693529752084,0.001,26068.0,26067.0,3.45871678]
[1693529752285,0.001,26068.0,26067.0,3.45865678]
[1693529752485,0.001,26068.0,26067.0,3.45877678]
[1693529752982,0.001,26068.0,26067.0,3.45241678]
[1693529753190,0.001,26068.0,26067.0,3.45289678]
[1693529753519,0.001,26068.0,26067.0,3.45427678]
[1693529753724,0.001,26068.0,26067.0,3.45499678]
[1693529753927,0.001,26068.0,26067.0,3.45907678]
[1693529754122,0.001,26068.0,26067.0,3.45595678]
[1693529754321,0.001,26068.0,26067.0,3.45403678]
[1693529754534,0.001,26068.0,26067.0,3.45385678]
[1693529755152,0.001,26068.0,26067.0,3.45397678]
[1693529755353,0.001,26068.0,26067.0,3.45277678]
[1693529755557,0.001,26068.0,26067.0,3.45289678]
[1693529755778,0.001,26068.0,26067.0,3.45319678]
[1693529755977,0.001,26068.0,26067.0,3.45145678]
[1693529756180,0.001,26068.0,26067.0,3.44809678]
[1693529756181,0.09301303,26068.0,26067.0,3.44809678]
[1693529756395,0.09301303,26068.0,26067.0,3.44785678]
[1693529756595,0.23103258,26068.0,26067.0,3.17204678]
[1693529757207,0.44771818,26068.0,26067.0,3.17204678]
[1693529759110,0.35570515,26068.0,26067.0,3.17204678]
[1693529759542,0.44776422,26068.0,26067.0,3.17204678]
[1693529759933,0.35570515,26068.0,26067.0,3.17204678]
[1693529760111,0.13901955,26068.0,26067.0,3.17204678]
[1693529760902,0.13909322,26068.0,26067.0,3.17204678]
[1693529761298,0.13909322,26068.0,26067.0,3.14204678]
[1693529761299,0.13809322,26068.0,26067.0,3.14204678]
[1693529761550,0.13809322,26068.0,26067.0,3.10704678]
[1693529768224,0.32221752,26068.0,26067.0,3.10704678]
[1693529771941,0.13809322,26068.0,26067.0,3.10704678]
[1693529772942,0.32221752,26068.0,26067.0,3.10704678]
[1693529774919,0.71312696,26068.0,26067.0,0.57544]
[1693529775131,0.71312696,26068.0,26066.0,0.575441]
[1693529775132,0.9737702,26068.0,26066.0,0.575441]
[1693529775331,0.43704348,26067.0,26066.0,0.575441]
[1693529775463,0.82831357,26067.0,26065.0,0.575481]
[1693529775668,0.32229792,26066.0,26065.0,0.575481]
[1693529777170,0.18417024,26066.0,26065.0,0.575481]
[1693529777371,0.42235899,26066.0,26065.0,0.575481]
[1693529778961,0.42235899,26066.0,26065.0,1.150965]
[1693529779309,0.56046618,26066.0,26065.0,1.150965]
[1693529782135,0.37629594,26066.0,26065.0,1.150965]
[1693529790888,0.13810719,26066.0,26065.0,1.150965]
[1693529793949,0.13810719,26066.0,26065.0,2.19609578]
[1693529794157,0.09202174,26066.0,26065.0,2.68394578]
[1693529794376,0.09202174,26068.0,26065.0,3.123748]
[1693529794587,0.23012893,26069.0,26067.0,0.1182]
[1693529794789,0.09202174,26069.0,26068.0,2.80695878]
[1693529794936,0.23012893,26069.0,26068.0,2.80695878]
[1693529795137,0.23012893,26069.0,26068.0,2.92551878]
[1693529795342,0.23012893,26069.0,26068.0,2.93133878]
[1693529795583,0.23012893,26069.0,26068.0,2.93043878]
[1693529795767,0.23012893,26069.0,26068.0,2.92935878]
[1693529796074,0.09202174,26069.0,26068.0,2.92983878]
[1693529796276,0.09202174,26069.0,26068.0,2.92959878]
[1693529796479,0.09202174,26069.0,26068.0,2.92461878]
[1693529796681,0.09202174,26069.0,26068.0,2.92587878]
[1693529796865,0.09202174,26069.0,26068.0,2.92593878]
[1693529797059,0.09202174,26069.0,26068.0,2.92857878]
[1693529797259,0.09202174,26069.0,26068.0,2.92617878]
[1693529797463,0.09202174,26069.0,26068.0,2.93037878]
[1693529797665,0.09202174,26069.0,26068.0,2.93019878]
[1693529797844,0.00607698,26070.0,26068.0,3.39975878]
[1693529798046,0.00607698,26070.0,26069.0,2.144388]
[1693529798262,0.00607698,26070.0,26069.0,3.03598478]
[1693529798468,0.00607698,26070.0,26069.0,3.03490478]
[1693529798671,0.00607698,26070.0,26069.0,3.03526478]
[1693529798871,0.00607698,26070.0,26069.0,3.03394478]
[1693529799139,0.00607698,26070.0,26069.0,3.03274478]
[1693529799344,0.00607698,26070.0,26069.0,3.03190478]
[1693529799547,0.00607698,26070.0,26069.0,3.03130478]
[1693529799756,0.00607698,26070.0,26069.0,3.03790478]
[1693529799967,0.00607698,26070.0,26069.0,3.03814478]
[1693529800151,0.00607698,26070.0,26069.0,3.03574478]
[1693529800356,0.00607698,26070.0,26069.0,3.03586478]
[1693529800542,0.00607698,26070.0,26069.0,3.03694478]
[1693529800865,0.13810719,26073.0,26069.0,3.44122478]
[1693529801147,0.18417024,26074.0,26069.0,3.44122478]
[1693529801148,0.13810719,26074.0,26072.0,0.2364]
[1693529801365,0.32227743,26075.0,26073.0,2.80651478]
[1693529801559,0.13810719,26075.0,26074.0,0.1182]
[1693529801761,0.13810719,26075.0,26074.0,2.33476178]
[1693529801992,0.13810719,26075.0,26074.0,2.33464178]
[1693529802194,0.13810719,26075.0,26074.0,2.33416178]
[1693529802419,0.13810719,26075.0,26074.0,2.33260178]
[1693529802620,0.13810719,26075.0,26074.0,2.33200178]
[1693529802818,0.13810719,26075.0,26074.0,2.33182178]
[1693529803019,0.13810719,26075.0,26074.0,2.33170178]
[1693529803295,0.32227743,26076.0,26074.0,2.33128178]
[1693529803495,0.32227743,26076.0,26075.0,0.50528678]
[1693529803642,0.13810719,26076.0,26075.0,2.31261578]
[1693529803846,0.13810719,26076.0,26075.0,2.31231578]
[1693529804206,0.13810719,26076.0,26075.0,2.31195578]
[1693529804451,0.13810719,26076.0,26075.0,2.31057578]
[1693529804643,0.13810719,26076.0,26075.0,2.30655578]
[1693529804847,0.13810719,26076.0,26075.0,2.31009578]
[1693529805054,0.13810719,26076.0,26075.0,2.30715578]
[1693529805262,0.13810719,26076.0,26075.0,2.29779578]
[1693529805469,0.13810719,26076.0,26075.0,2.23107578]
[1693529806210,0.47581543,26077.0,26075.0,2.23107578]
[1693529806415,0.47581543,26077.0,26076.0,0.1182]
[1693529806618,0.47581543,26077.0,26076.0,1.843923]
[1693529807040,0.29164519,26077.0,26076.0,1.843923]
[1693529808296,0.38348314,26077.0,26076.0,1.843923]
[1693529809092,0.24537595,26077.0,26076.0,1.843923]
[1693529811403,0.09183795,26079.0,26076.0,2.35508978]
[1693529811630,0.09183795,26079.0,26077.0,0.38708678]
[1693529811849,0.09183795,26079.0,26078.0,2.418988]
[1693529812065,0.22994514,26080.0,26078.0,2.80607478]
[1693529812267,0.09183795,26080.0,26079.0,0.50528678]
[1693529812471,0.09183795,26080.0,26079.0,2.23081178]
[1693529813352,0.54866114,26081.0,26079.0,2.23081178]
[1693529813573,0.54866114,26081.0,26079.0,2.11261178]
[1693529814112,0.41055395,26081.0,26079.0,2.11261178]
[1693529815527,0.318716,26081.0,26079.0,2.11261178]
[1693529818291,0.153516,26081.0,26079.0,2.11261178]
[1693529820803,0.153516,26081.0,26079.0,2.17903178]
[1693529821006,0.153516,26081.0,26079.0,2.17855178]
[1693529821524,0.153516,26081.0,26079.0,2.17813178]
[1693529821727,0.153516,26081.0,26079.0,2.17933178]
[1693529821904,0.1628,26082.0,26081.0,2.300524]
[1693529822105,0.2274,26084.0,26081.0,2.80581078]
[1693529822306,0.2274,26084.0,26082.0,0.50528678]
[1693529822638,0.380901,26084.0,26083.0,1.150174]
[1693529823028,0.153501,26084.0,26083.0,1.150174]
[1693529823384,0.153501,26084.0,26083.0,1.725261]
[1693529823887,0.153501,26084.0,26083.0,2.23054778]
[1693529824091,0.2274,26086.0,26083.0,2.23054778]
[1693529824294,0.2274,26086.0,26084.0,0.50528678]
[1693529824422,0.2274,26086.0,26085.0,1.725129]
[1693529824626,0.380885,26086.0,26085.0,1.725129]
[1693529824827,0.153485,26086.0,26085.0,1.725129]
[1693529826222,0.38513843,26086.0,26085.0,1.725129]
[1693529827453,0.153485,26086.0,26085.0,1.725129]
[1693529830308,0.153485,26086.0,26085.0,1.843329]